fUST/lending_fUST_20260507
["ID","MTS","AMOUNT","RATE_DAILY","PERIOD"]
[421751703,1778105440000,-500.0,0.00013896,2]
[421751686,1778105440000,-430.51181297,0.00013724,2]
[421751688,1778105440000,-500.0,0.00013724,2]
[421751690,1778105440000,-500.0,0.00013724,2]
[421751691,1778105440000,-500.0,0.00013724,2]
[421751687,1778105440000,-500.0,0.00013724,2]
[421751689,1778105440000,-500.0,0.00013724,2]
[421751693,1778105440000,-500.0,0.00013724,2]
[421751701,1778105440000,-557.5788265,0.00013845,2]
[421751702,1778105440000,-600.0,0.00013895,2]
[421751704,1778105440000,-500.0,0.00013896,2]
[421751699,1778105440000,-169.47,0.00013803,2]
[421751696,1778105440000,-537.6845,0.0001379,2]
[421751694,1778105440000,-572.28204926,0.00013724,2]
[421751707,1778105440000,-5124.77310468,0.00013897,2]
[421751708,1778105440000,-781.55122209,0.00013897,2]
[421751706,1778105440000,-884.28,0.00013896,2]
[421751698,1778105440000,-242.88910312,0.00013798,2]
[421751705,1778105440000,-500.0,0.00013896,2]
[421751697,1778105440000,-1213.35015545,0.00013798,2]
[421751695,1778105440000,-511.70225796,0.0001379,2]
[421751692,1778105440000,-500.0,0.00013724,2]
[421751700,1778105440000,-171.02,0.00013839,2]
[421751729,1778105443000,-500.0,0.00013898,2]
[421751737,1778105443000,-500.0,0.00013898,2]
[421751731,1778105443000,-500.0,0.00013898,2]
[421751736,1778105443000,-144.87317175,0.00013898,2]
[421751732,1778105443000,-500.0,0.00013898,2]
[421751730,1778105443000,-500.0,0.00013898,2]
[421751724,1778105443000,-305.31732644,0.00013897,2]
[421751734,1778105443000,-500.0,0.00013898,2]
[421751728,1778105443000,-447.92064625,0.00013898,2]
[421751726,1778105443000,-500.0,0.00013897,2]
[421751733,1778105443000,-500.0,0.00013898,2]
[421751725,1778105443000,-500.0,0.00013897,2]
[421751739,1778105443000,-500.0,0.00013898,2]
[421751727,1778105443000,-52.07935375,0.00013898,2]
[421751738,1778105443000,-500.0,0.00013898,2]
[421751735,1778105443000,-355.12682825,0.00013898,2]
[421751740,1778105443000,-500.0,0.00013898,2]
[421751746,1778105443000,-578.20924308,0.000139,2]
[421751749,1778105443000,-599.60298507,0.00013955,2]
[421751752,1778105443000,-632.1983299,0.00013963,2]
[421751753,1778105443000,-713.378935,0.00013963,2]
[421751748,1778105443000,-822.0,0.00013915,2]
[421751754,1778105443000,-713.378935,0.00013963,2]
[421751751,1778105443000,-121.22027986,0.00013963,2]
[421751755,1778105443000,-713.378935,0.00013963,2]
[421751750,1778105443000,-1908.6358067,0.00013963,2]
[421751745,1778105443000,-151.0,0.00013899,2]
[421751744,1778105443000,-151.0,0.00013899,2]
[421751743,1778105443000,-380.8695772,0.00013898,2]
[421751741,1778105443000,-500.0,0.00013898,2]
[421751742,1778105443000,-500.0,0.00013898,2]
[421751747,1778105443000,-151.0,0.000139,2]
[421751756,1778105443000,-567.40158632,0.00013963,2]
[421751759,1778105446000,-621.78829552,0.0001401,2]
[421751757,1778105446000,-145.97734868,0.00013963,2]
[421751758,1778105446000,-151.0,0.00014,2]
[421751761,1778105446000,-180.99523797,0.00014052,2]
[421751764,1778105446000,-151.0,0.00014052,2]
[421751765,1778105446000,-151.0,0.00014052,2]
[421751760,1778105446000,-185.80891122,0.00014052,2]
[421751763,1778105446000,-151.0,0.00014052,2]
[421751766,1778105446000,-139.08020661,0.00014052,2]
[421751762,1778105446000,-151.0,0.00014052,2]
[421751768,1778105460000,500000.0,0.0001972,120]
[421753841,1778106631000,-300.0,0.00012608,2]
[421753837,1778106631000,-665.05,0.00012053,2]
[421753838,1778106631000,-4334.95,0.00012053,2]
[421753839,1778106631000,-5000.0,0.00012175,2]
[421753843,1778106631000,-300.0,0.00012609,2]
[421753840,1778106631000,-1200.0,0.00012297,2]
[421753844,1778106631000,-300.0,0.00012609,2]
[421753842,1778106631000,-300.0,0.00012608,2]
[421753845,1778106631000,-266.82046995,0.00012611,2]
[421753846,1778106631000,-2651.04106007,0.00013299,2]
[421753848,1778106631000,-2624.48641793,0.000133,2]
[421753850,1778106631000,-2395.51495865,0.000133,2]
[421753851,1778106631000,-2408.65681648,0.000133,2]
[421753852,1778106631000,-194.31128252,0.000133,2]
[421753849,1778106631000,-2166.54349943,0.000133,2]
[421753847,1778106631000,-981.88211654,0.000133,2]
[421753869,1778106632000,-500.0,0.00013399,2]
[421753872,1778106632000,-500.0,0.00013399,2]
[421753867,1778106632000,-500.0,0.00013399,2]
[421753871,1778106632000,-500.0,0.00013399,2]
[421753876,1778106632000,-500.0,0.00013399,2]
[421753878,1778106632000,-500.0,0.00013399,2]
[421753887,1778106632000,-1355.01746927,0.00013399,2]
[421753879,1778106632000,-500.0,0.00013399,2]
[421753880,1778106632000,-500.0,0.00013399,2]
[421753866,1778106632000,-621.06724334,0.00013399,2]
[421753877,1778106632000,-500.0,0.00013399,2]
[421753884,1778106632000,-1355.01746927,0.00013399,2]
[421753888,1778106632000,-500.0,0.00013399,2]
[421753882,1778106632000,-500.0,0.00013399,2]
[421753885,1778106632000,-500.0,0.00013399,2]
[421753868,1778106632000,-500.0,0.00013399,2]
[421753875,1778106632000,-500.0,0.00013399,2]
[421753864,1778106632000,-1355.01746927,0.00013399,2]
[421753883,1778106632000,-500.0,0.00013399,2]
[421753853,1778106632000,-500.0,0.00013399,2]
[421753862,1778106632000,-1355.01746927,0.00013399,2]
[421753854,1778106632000,-303.65625185,0.00013399,2]
[421753857,1778106632000,-1355.01746927,0.00013399,2]
[421753859,1778106632000,-1355.01746927,0.00013399,2]
[421753870,1778106632000,-500.0,0.00013399,2]
[421753855,1778106632000,-294.11258519,0.00013399,2]
[421753860,1778106632000,-1355.01746927,0.00013399,2]
[421753858,1778106632000,-1355.01746927,0.00013399,2]
[421753863,1778106632000,-1355.01746927,0.00013399,2]
[421753873,1778106632000,-274.81605658,0.00013399,2]
[421753874,1778106632000,-500.0,0.00013399,2]
[421753865,1778106632000,-1355.01746927,0.00013399,2]
[421753861,1778106632000,-1355.01746927,0.00013399,2]
[421753881,1778106632000,-500.0,0.00013399,2]
[421753893,1778106632000,-500.0,0.00013399,2]
[421753890,1778106632000,-500.0,0.00013399,2]
[421753911,1778106632000,-1438.40315969,0.00013399,2]
[421753907,1778106632000,-1355.01746927,0.00013399,2]
[421753910,1778106632000,-1438.40315969,0.00013399,2]
[421753909,1778106632000,-1438.40315969,0.00013399,2]
[421753920,1778106632000,-242.70696769,0.00013399,2]
[421753918,1778106632000,-1431.8649635,0.00013399,2]
[421753912,1778106632000,-1438.40315969,0.00013399,2]
[421753914,1778106632000,-1438.40315969,0.00013399,2]
[421753913,1778106632000,-1438.40315969,0.00013399,2]
[421753919,1778106632000,-1431.8649635,0.00013399,2]
[421753922,1778106632000,-151.0,0.00013399,2]
[421753915,1778106632000,-1438.40315969,0.00013399,2]
[421753917,1778106632000,-1431.8649635,0.00013399,2]
[421753921,1778106632000,-175.57210833,0.00013399,2]
[421753916,1778106632000,-1431.8649635,0.00013399,2]
[421753902,1778106632000,-500.0,0.00013399,2]
[421753908,1778106632000,-1438.40315969,0.00013399,2]
[421753906,1778106632000,-363.99983285,0.00013399,2]
[421753900,1778106632000,-500.0,0.00013399,2]
[421753889,1778106632000,-500.0,0.00013399,2]
[421753896,1778106632000,-500.0,0.00013399,2]
[421753923,1778106632000,-51862.59467448,0.000134,2]
[421753899,1778106632000,-500.0,0.00013399,2]
[421753897,1778106632000,-500.0,0.00013399,2]
[421753891,1778106632000,-1355.01746927,0.00013399,2]
[421753898,1778106632000,-500.0,0.00013399,2]
[421753894,1778106632000,-1355.01746927,0.00013399,2]
[421753892,1778106632000,-500.0,0.00013399,2]
[421753901,1778106632000,-1355.01746927,0.00013399,2]
[421753895,1778106632000,-500.0,0.00013399,2]
[421753903,1778106632000,-500.0,0.00013399,2]
[421753905,1778106632000,-500.0,0.00013399,2]
[421753904,1778106632000,-500.0,0.00013399,2]
[421753886,1778106632000,-500.0,0.00013399,2]
[421753926,1778106638000,-756.81431939,0.00011932,2]
[421753927,1778106638000,-752.2588869,0.00011932,2]
[421753928,1778106638000,-1590.7411131,0.000134,2]
[421753935,1778106640000,-310.35409388,0.000134,2]
[421753934,1778106640000,-1219.91665635,0.000134,2]
[421753957,1778106643000,-7714.38445219,0.000134,2]
[421753956,1778106643000,-304.0,0.000134,2]
[421753966,1778106646000,-12719.50549113,0.000134,2]
[421753967,1778106646000,-842.0,0.000134,2]
[421753964,1778106646000,-1433.47441491,0.000134,2]
[421753965,1778106646000,-5636.81471043,0.000134,2]
[421755016,1778106779000,10000.0,0.00019726,120]
[421755017,1778106798000,629.05,0.00019726,120]
[421755027,1778107764000,161.82463662,0.00019,120]
[421755079,1778107832000,-5000.0,0.00011574,2]
[421755083,1778107832000,-10000.0,0.00011691,2]
[421755080,1778107832000,-300.0,0.0001169,2]
[421755087,1778107832000,-151.2875088,0.00011831,2]
[421755085,1778107832000,-283.4728593,0.00011784,2]
[421755089,1778107832000,-160.0,0.00011998,2]
[421755093,1778107832000,-160.0,0.00011998,2]
[421755091,1778107832000,-160.0,0.00011998,2]
[421755099,1778107832000,-325.7282482,0.00012655,2]
[421755097,1778107832000,-325.7108611,0.00012655,2]
[421755101,1778107832000,-300.0,0.00012837,2]
[421755105,1778107832000,-259693.42473354,0.00012998,2]
[421755103,1778107832000,-4488.93839314,0.00012998,2]
[421755095,1778107832000,-160.78,0.00012397,2]
[421755595,1778107838000,-3495.8960503,0.00012998,2]
[421755687,1778107840000,-800.0,0.00012868,2]
[421756419,1778107847000,-963.14658844,0.00012868,2]
[421756862,1778109049000,-5316.72539353,0.00012078,2]
[421756852,1778109049000,-690.78040377,0.00011412,2]
[421756859,1778109049000,-277.80340211,0.00011659,2]
[421756858,1778109049000,-4309.21959623,0.00011412,2]
[421756865,1778109049000,-15386.21699798,0.00012896,2]
[421756861,1778109049000,-325.0,0.00012,2]
[421756864,1778109049000,-5232.26635638,0.00012896,2]
[421756863,1778109049000,-10196.31649486,0.00012558,2]
[421756860,1778109049000,-165.023351,0.00011833,2]
[421756895,1778109165000,6871.50270843,0.00015,120]
[421756900,1778109466000,988.0,0.00019726,120]
[421756901,1778109564000,10613.0,0.00019726,120]
[421756930,1778110232000,-160.0,0.00012701,2]
[421756927,1778110232000,-272.24733407,0.00011584,2]
[421756932,1778110232000,-847.44,0.00012794,2]
[421756926,1778110232000,-5000.0,0.00011282,2]
[421756929,1778110232000,-151.0,0.00012668,2]
[421756931,1778110232000,-533.59,0.00012794,2]
[421756933,1778110232000,-500.0,0.00012794,2]
[421756928,1778110232000,-325.688714,0.00012615,2]
[421756935,1778110232000,-262.03889699,0.00012968,2]
[421756934,1778110232000,-8468.73395193,0.00012968,2]
[421757192,1778110241000,-1034.17440355,0.00012968,2]
[421757184,1778110241000,-545.72508686,0.00012968,2]
[421757187,1778110241000,-1034.17440355,0.00012968,2]
[421757182,1778110241000,-12315.31382904,0.00012968,2]
[421757183,1778110241000,-1034.17440355,0.00012968,2]
[421757188,1778110241000,-1034.17440355,0.00012968,2]
[421757185,1778110241000,-1034.17440355,0.00012968,2]
[421757189,1778110241000,-1034.17440355,0.00012968,2]
[421757180,1778110241000,-643.78105749,0.00012838,2]
[421757191,1778110241000,-1034.17440355,0.00012968,2]
[421757190,1778110241000,-1034.17440355,0.00012968,2]
[421757181,1778110241000,-998.55307819,0.00012838,2]
[421757186,1778110241000,-405.67069715,0.00012968,2]
[421757196,1778110241000,-1034.17440355,0.00012968,2]
[421757194,1778110241000,-1034.17440355,0.00012968,2]
[421757193,1778110241000,-1034.17440355,0.00012968,2]
[421757195,1778110241000,-1034.17440355,0.00012968,2]
[421757209,1778110241000,-500.0,0.00012968,2]
[421757207,1778110241000,-1034.17440355,0.00012968,2]
[421757213,1778110241000,-339.52886154,0.00012968,2]
[421757205,1778110241000,-500.0,0.00012968,2]
[421757203,1778110241000,-1034.17440355,0.00012968,2]
[421757211,1778110241000,-500.0,0.00012968,2]
[421757201,1778110241000,-500.0,0.00012968,2]
[421757199,1778110241000,-500.0,0.00012968,2]
[421757200,1778110241000,-1034.17440355,0.00012968,2]
[421757198,1778110241000,-500.0,0.00012968,2]
[421757197,1778110241000,-1034.17440355,0.00012968,2]
[421757202,1778110241000,-304.49081177,0.00012968,2]
[421757204,1778110241000,-500.0,0.00012968,2]
[421757237,1778110243000,-1034.17440355,0.00012968,2]
[421757240,1778110243000,-1034.17440355,0.00012968,2]
[421757238,1778110243000,-500.0,0.00012968,2]
[421757239,1778110243000,-500.0,0.00012968,2]
[421757236,1778110243000,-694.64554201,0.00012968,2]
[421757245,1778110244000,-1633.31061128,0.00012968,2]
[421757244,1778110244000,-500.0,0.00012968,2]
[421757243,1778110244000,-500.0,0.00012968,2]
[421757242,1778110244000,-588.45483875,0.00012968,2]
[421757241,1778110244000,-485.63469303,0.00012968,2]
[421757252,1778110246000,-1690.79307248,0.00012968,2]
[421757251,1778110246000,-57.4824612,0.00012968,2]
[421757255,1778110246000,-1690.79307248,0.00012968,2]
[421757253,1778110246000,-1690.79307248,0.00012968,2]
[421757256,1778110246000,-1690.79307248,0.00012968,2]
[421757258,1778110246000,-1690.79307248,0.00012968,2]
[421757257,1778110246000,-1690.79307248,0.00012968,2]
[421757254,1778110246000,-1690.79307248,0.00012968,2]
[421757260,1778110247000,-61810.22283028,0.00012969,2]
[421757261,1778110247000,-6175.0,0.00012969,2]
[421757259,1778110247000,-1690.79307248,0.00012968,2]
[421757262,1778110671000,10000.0,0.00019726,120]
[421757264,1778110837000,6889.0,0.00019726,120]
[421757265,1778110844000,1000.0,0.00019726,120]
[421757311,1778111431000,-2274.70622617,0.00012516,2]
[421757314,1778111431000,-161.57016804,0.00012826,2]
[421757316,1778111431000,-1319.1,0.00012866,2]
[421757318,1778111431000,-500.0,0.00012867,2]
[421757320,1778111431000,-151.0,0.00012967,2]
[421757324,1778111431000,-812.13,0.00012967,2]
[421757322,1778111431000,-151.0,0.00012967,2]
[421757329,1778111431000,-537.6845,0.00012997,2]
[421757327,1778111431000,-181.26,0.00012978,2]
[421757313,1778111431000,-288.18446877,0.00012643,2]
[421757331,1778111431000,-191.39601213,0.00012997,2]
[421757333,1778111431000,-500.0,0.00012999,2]
[421757335,1778111431000,-162.73,0.0001305,2]
[421757339,1778111431000,-294.03811208,0.00013052,2]
[421757337,1778111431000,-254.01392306,0.00013052,2]
[421757326,1778111431000,-177.26,0.00012975,2]
[421757488,1778111437000,-578.20924308,0.00013107,2]
[421757486,1778111437000,-171.17,0.00013103,2]
[421757484,1778111437000,-9.52679136,0.00013052,2]
[421757490,1778111437000,-1319.1,0.0001314,2]
[421757496,1778111437000,-500.0,0.00013193,2]
[421757498,1778111437000,-621.78829552,0.00013217,2]
[421757500,1778111437000,-812.13,0.00013241,2]
[421757494,1778111437000,-599.60298507,0.00013162,2]
[421757501,1778111437000,-500.0,0.00013259,2]
[421757492,1778111437000,-500.0,0.00013141,2]
[421757543,1778111438000,-882.49549103,0.00013597,2]
[421757544,1778111438000,-882.49549103,0.00013597,2]
[421757547,1778111438000,-882.49549103,0.00013597,2]
[421757541,1778111438000,-882.49549103,0.00013597,2]
[421757527,1778111438000,-382.0075608,0.00013597,2]
[421757531,1778111438000,-882.49549103,0.00013597,2]
[421757535,1778111438000,-882.49549103,0.00013597,2]
[421757533,1778111438000,-882.49549103,0.00013597,2]
[421757525,1778111438000,-283.969488,0.00013597,2]
[421757524,1778111438000,-331.73718811,0.00013597,2]
[421757517,1778111438000,-719.04747942,0.00013437,2]
[421757522,1778111438000,-773.2413689,0.00013547,2]
[421757518,1778111438000,-745.65223616,0.00013492,2]
[421757511,1778111438000,-1319.1,0.00013414,2]
[421757513,1778111438000,-500.0,0.00013415,2]
[421757515,1778111438000,-511.35,0.00013423,2]
[421757507,1778111438000,-693.3919763,0.00013382,2]
[421757508,1778111438000,-151.0,0.000134,2]
[421757509,1778111438000,-168.05849364,0.000134,2]
[421757503,1778111438000,-644.79446246,0.00013272,2]
[421757505,1778111438000,-668.65185757,0.00013327,2]
[421757520,1778111438000,-812.13,0.00013515,2]
[421757545,1778111438000,-882.49549103,0.00013597,2]
[421757529,1778111438000,-398.7172043,0.00013597,2]
[421757548,1778111438000,-882.49549103,0.00013597,2]
[421757570,1778111438000,-77613.94146293,0.00013599,2]
[421757566,1778111438000,-873.47961162,0.00013597,2]
[421757569,1778111438000,-19936.39791286,0.00013599,2]
[421757568,1778111438000,-873.47961162,0.00013597,2]
[421757567,1778111438000,-873.47961162,0.00013597,2]
[421757564,1778111438000,-916.4376253,0.00013597,2]
[421757563,1778111438000,-916.4376253,0.00013597,2]
[421757565,1778111438000,-916.4376253,0.00013597,2]
[421757560,1778111438000,-916.4376253,0.00013597,2]
[421757558,1778111438000,-916.4376253,0.00013597,2]
[421757559,1778111438000,-916.4376253,0.00013597,2]
[421757556,1778111438000,-916.4376253,0.00013597,2]
[421757557,1778111438000,-916.4376253,0.00013597,2]
[421757561,1778111438000,-916.4376253,0.00013597,2]
[421757555,1778111438000,-916.4376253,0.00013597,2]
[421757553,1778111438000,-882.49549103,0.00013597,2]
[421757554,1778111438000,-916.4376253,0.00013597,2]
[421757551,1778111438000,-882.49549103,0.00013597,2]
[421757552,1778111438000,-882.49549103,0.00013597,2]
[421757550,1778111438000,-882.49549103,0.00013597,2]
[421757549,1778111438000,-882.49549103,0.00013597,2]
[421757562,1778111438000,-916.4376253,0.00013597,2]
[421757546,1778111438000,-882.49549103,0.00013597,2]
[421757597,1778111446000,-39756.38918905,0.00013599,2]
[421757599,1778112031000,200.0,0.00017846,120]
[421757602,1778112276000,573.22806933,0.00017861,120]
[421757604,1778112325000,120434.36455956,7.6e-05,2]
[421757610,1778112390000,200.0,0.00016767,120]
[421757611,1778112450000,200.0,0.00018735,120]
[421757618,1778112570000,200.0,0.00018967,120]
[421757670,1778112631000,-338.20203882,0.00012708,2]
[421757672,1778112631000,-50.85505418,0.000131,2]
[421757668,1778112631000,-160.566907,0.0001261,2]
[421757666,1778112631000,-152.0,9.155e-05,7]
[421757789,1778112638000,-732.21552799,0.00013397,2]
[421757778,1778112638000,-537.6845,0.0001339,2]
[421757784,1778112638000,-732.21552799,0.00013397,2]
[421757774,1778112638000,-12544.71590077,0.000133,2]
[421757772,1778112638000,-11305.24431069,0.000133,2]
[421757776,1778112638000,-4259.55866211,0.00013323,2]
[421757787,1778112638000,-732.21552799,0.00013397,2]
[421757769,1778112638000,-12829.53716847,0.000133,2]
[421757780,1778112638000,-284.67981072,0.00013397,2]
[421757768,1778112638000,-5221.81486738,0.000133,2]
[421757770,1778112638000,-10065.7727207,0.000133,2]
[421757767,1778112638000,-500.0,0.00013299,2]
[421757766,1778112638000,-161.57016804,0.00013286,2]
[421757793,1778112638000,-732.21552799,0.00013397,2]
[421757756,1778112638000,-109.14494582,0.000131,2]
[421757758,1778112638000,-160.0,0.000131,2]
[421757765,1778112638000,-442.0,0.00013279,2]
[421757762,1778112638000,-185.0,0.00013279,2]
[421757760,1778112638000,-741.0,0.00013279,2]
[421757782,1778112638000,-357.59784445,0.00013397,2]
[421757795,1778112638000,-732.21552799,0.00013397,2]
[421757841,1778112638000,-831685.33486401,0.00013398,2]
[421757807,1778112638000,-732.21552799,0.00013397,2]
[421757844,1778112638000,-6326.23149862,0.00013398,2]
[421757833,1778112638000,-805.4370808,0.00013397,2]
[421757831,1778112638000,-805.4370808,0.00013397,2]
[421757835,1778112638000,-805.4370808,0.00013397,2]
[421757829,1778112638000,-805.4370808,0.00013397,2]
[421757827,1778112638000,-805.4370808,0.00013397,2]
[421757839,1778112638000,-196387.14012543,0.00013398,2]
[421757825,1778112638000,-805.4370808,0.00013397,2]
[421757837,1778112638000,-805.4370808,0.00013397,2]
[421757806,1778112638000,-732.21552799,0.00013397,2]
[421757824,1778112638000,-805.4370808,0.00013397,2]
[421757820,1778112638000,-732.21552799,0.00013397,2]
[421757818,1778112638000,-732.21552799,0.00013397,2]
[421757803,1778112638000,-732.21552799,0.00013397,2]
[421757801,1778112638000,-732.21552799,0.00013397,2]
[421757815,1778112638000,-732.21552799,0.00013397,2]
[421757809,1778112638000,-732.21552799,0.00013397,2]
[421757812,1778112638000,-732.21552799,0.00013397,2]
[421757798,1778112638000,-732.21552799,0.00013397,2]
[421757814,1778112638000,-732.21552799,0.00013397,2]
[421757822,1778112638000,-732.21552799,0.00013397,2]
[421758257,1778112644000,-2943.36590585,0.000132,2]
[421758259,1778112644000,-836.97372509,0.00013398,2]
[421758258,1778112644000,-160.0,0.00013274,2]
[421758273,1778112646000,-28642.4799117,0.00013398,2]
[421758272,1778112646000,-5000.0,0.00013068,2]
[421758274,1778112870000,200.0,0.00016833,120]
[421758295,1778113230000,200.0,0.00018087,120]
[421758296,1778113290000,200.0,0.00019318,120]
[421758297,1778113590000,200.0,0.00019661,120]
[421758355,1778113832000,-2638.7945506,0.00012271,2]
[421758359,1778113832000,-161.57016804,0.00013121,2]
[421758361,1778113832000,-236.0,0.00013498,2]
[421758343,1778113832000,-2162.54363107,0.00012007,2]
[421758345,1778113832000,-1821.18359902,0.00012007,2]
[421758351,1778113832000,-1738.20964527,0.00012271,2]
[421758353,1778113832000,-660.35899665,0.00012271,2]
[421758357,1778113832000,-177.34116616,0.00012909,2]
[421758365,1778113832000,-151.0,0.000135,2]
[421758349,1778113832000,-434.98739872,0.00012271,2]
[421758363,1778113832000,-151.0,0.000135,2]
[421758367,1778113832000,-160.0,0.000135,3]
[421758371,1778113832000,-317.7968051,0.000135,7]
[421758369,1778113832000,-160.0,0.000135,4]
[421758373,1778113832000,-366.65536832,0.00013598,2]
[421758347,1778113832000,-344.69544517,0.00012128,2]
[421758493,1778113838000,-500.0,0.00013698,2]
[421758490,1778113838000,-129.46994018,0.0001369,7]
[421758497,1778113838000,-156.0,0.00013699,2]
[421758499,1778113838000,-1000.0,0.00013699,2]
[421758501,1778113838000,-1000.0,0.00013699,2]
[421758503,1778113838000,-1751.81677595,0.00013771,2]
[421758509,1778113838000,-294.73737539,0.00013772,2]
[421758507,1778113838000,-335.78273266,0.00013772,2]
[421758517,1778113838000,-782.36372953,0.00013772,2]
[421758511,1778113838000,-782.36372953,0.00013772,2]
[421758519,1778113838000,-782.36372953,0.00013772,2]
[421758515,1778113838000,-782.36372953,0.00013772,2]
[421758492,1778113838000,-500.0,0.00013698,2]
[421758505,1778113838000,-782.36372953,0.00013772,2]
[421758486,1778113838000,-202.05489831,0.0001369,7]
[421758466,1778113838000,-498.824,0.00013598,2]
[421758481,1778113838000,-202.05489831,0.0001369,7]
[421758460,1778113838000,-852.20292996,0.00013598,2]
[421758456,1778113838000,-133.34463168,0.00013598,2]
[421758464,1778113838000,-155.0,0.00013598,2]
[421758458,1778113838000,-151.0,0.00013598,2]
[421758462,1778113838000,-302.01707004,0.00013598,2]
[421758521,1778113838000,-782.36372953,0.00013772,2]
[421758488,1778113838000,-72.58495813,0.0001369,7]
[421758468,1778113838000,-189.5850088,0.00013598,2]
[421758470,1778113838000,-710.61,0.00013598,2]
[421758474,1778113838000,-500.0,0.00013598,2]
[421758476,1778113838000,-500.0,0.00013598,2]
[421758478,1778113838000,-791.0,0.000136,2]
[421758480,1778113838000,-2575.44516761,0.00013672,2]
[421758484,1778113838000,-202.05489831,0.0001369,7]
[421758472,1778113838000,-175.67,0.00013598,2]
[421758513,1778113838000,-782.36372953,0.00013772,2]
[421758495,1778113838000,-500.0,0.00013698,2]
[421758523,1778113838000,-782.36372953,0.00013772,2]
[421758525,1778113838000,-782.36372953,0.00013772,2]
[421758555,1778113838000,-782.36372953,0.00013772,2]
[421758552,1778113838000,-500.0,0.00013772,2]
[421758550,1778113838000,-500.0,0.00013772,2]
[421758554,1778113838000,-500.0,0.00013772,2]
[421758553,1778113838000,-500.0,0.00013772,2]
[421758556,1778113838000,-268.59304734,0.00013772,2]
[421758560,1778113838000,-844.9528279,0.00013772,2]
[421758561,1778113838000,-844.9528279,0.00013772,2]
[421758563,1778113838000,-844.9528279,0.00013772,2]
[421758564,1778113838000,-844.9528279,0.00013772,2]
[421758565,1778113838000,-844.9528279,0.00013772,2]
[421758566,1778113838000,-844.9528279,0.00013772,2]
[421758567,1778113838000,-844.9528279,0.00013772,2]
[421758562,1778113838000,-844.9528279,0.00013772,2]
[421758549,1778113838000,-500.0,0.00013772,2]
[421758551,1778113838000,-500.0,0.00013772,2]
[421758548,1778113838000,-500.0,0.00013772,2]
[421758527,1778113838000,-782.36372953,0.00013772,2]
[421758529,1778113838000,-782.36372953,0.00013772,2]
[421758539,1778113838000,-782.36372953,0.00013772,2]
[421758531,1778113838000,-500.0,0.00013772,2]
[421758558,1778113838000,-782.36372953,0.00013772,2]
[421758533,1778113838000,-500.0,0.00013772,2]
[421758535,1778113838000,-500.0,0.00013772,2]
[421758537,1778113838000,-288.07593691,0.00013772,2]
[421758542,1778113838000,-500.0,0.00013772,2]
[421758545,1778113838000,-782.36372953,0.00013772,2]
[421758540,1778113838000,-500.0,0.00013772,2]
[421758557,1778113838000,-500.0,0.00013772,2]
[421758547,1778113838000,-500.0,0.00013772,2]
[421758546,1778113838000,-500.0,0.00013772,2]
[421758559,1778113838000,-844.9528279,0.00013772,2]
[421758544,1778113838000,-500.0,0.00013772,2]
[421758568,1778113839000,-844.9528279,0.00013772,2]
[421758569,1778113839000,-446254.19164799,0.00013773,2]
[421758658,1778113840000,-223.47931567,0.00013773,2]
[421758656,1778113840000,-536.361,0.00013599,2]
[421758722,1778113843000,-403.29280148,0.00013599,2]
[421758728,1778113846000,-96.70719852,0.00013599,2]
[421758731,1778113846000,-30314.19882822,0.00013773,2]
[421758730,1778113846000,-1167.87785063,0.00013771,2]
[421758729,1778113846000,-500.0,0.00013599,2]
[421758732,1778113890000,200.0,0.00017752,120]
[421758733,1778114190000,200.0,0.00017868,120]
[421758734,1778114430000,200.0,0.00018592,120]
[421758769,1778114490000,200.0,0.0001895,120]
[421758770,1778114610000,200.0,0.00018416,120]
[421758772,1778114842000,152.04821557,0.00019726,120]
[421758809,1778115033000,-4346.43572585,0.00012156,2]
[421758812,1778115033000,-405.89418017,0.00012156,2]